bitfinex/quotes_ETHUSD_20240915
["timestamp","ask_amount","ask_price","bid_price","bid_amount"]
[1726390123933,0.03942,2421.9,2421.8,19.11123702]
[1726390124498,0.03942,2421.9,2421.8,19.97763895]
[1726390125330,0.03942,2421.9,2421.8,15.84847895]
[1726390125907,0.03942,2421.9,2421.8,16.58365149]
[1726390126217,0.03942,2421.9,2421.8,16.58367295]
[1726390127431,0.03942,2421.9,2421.8,15.71727102]
[1726390128057,0.03942,2421.9,2421.8,15.1094978]
[1726390128213,0.03942,2421.9,2421.8,15.71727573]
[1726390129143,0.03942,2421.9,2421.8,15.1094978]
[1726390129367,0.03942,2421.9,2421.8,15.71727455]
[1726390129541,0.03942,2421.9,2421.8,15.71727453]
[1726390132907,0.03942,2421.9,2421.8,14.37431667]
[1726390133107,0.03942,2421.9,2421.8,15.71726868]
[1726390139546,0.03942,2421.9,2421.8,14.98209314]
[1726390139927,0.03942,2421.9,2421.8,15.71726781]
[1726390141531,0.03942,2421.9,2421.8,16.58366974]
[1726390142163,0.03942,2421.9,2421.8,15.2407186]
[1726390142371,0.03942,2421.9,2421.8,16.58365878]
[1726390144068,0.03942,2421.9,2421.8,16.58355774]
[1726390144446,0.03942,2421.9,2421.8,17.01800339]
[1726390146276,0.03942,2421.9,2421.8,17.99043645]
[1726390146579,0.03942,2421.9,2421.8,18.42404447]
[1726390146751,0.03942,2421.9,2421.8,17.68887316]
[1726390147079,0.03942,2421.9,2421.8,18.42404212]
[1726390147569,0.03942,2421.9,2421.8,18.85814825]
[1726390149137,0.03942,2421.9,2421.8,16.54277736]
[1726390149451,0.03942,2421.9,2421.8,18.85815863]
[1726390149650,0.03942,2421.9,2421.8,18.25038804]
[1726390149969,0.03942,2421.9,2421.8,19.59333574]
[1726390150552,0.03942,2421.9,2421.8,15.10948823]
[1726390150746,0.03942,2421.9,2421.8,16.6897147]
[1726390151148,0.03942,2421.9,2421.8,15.95454314]
[1726390151345,0.03942,2421.9,2421.8,15.95454584]
[1726390152215,0.03942,2421.9,2421.8,18.12572639]
[1726390152858,0.03942,2421.9,2421.8,16.54549722]
[1726390153178,0.03942,2421.9,2421.8,19.70594709]
[1726390153481,0.03942,2421.9,2421.8,18.12572444]
[1726390155681,0.03942,2421.9,2421.8,18.12571883]
[1726390156271,0.03942,2421.9,2421.8,15.95453828]
[1726390156497,0.03942,2421.9,2421.8,18.12572138]
[1726390160306,0.03942,2421.9,2421.8,16.54549977]
[1726390160516,0.03942,2421.9,2421.8,18.12569337]
[1726390161015,0.03942,2421.9,2421.8,15.95451027]
[1726390161189,0.03942,2421.9,2421.8,18.12559092]
[1726390165725,0.03942,2421.9,2421.8,15.95451027]
[1726390166019,0.03942,2421.9,2421.8,18.12554157]
[1726390170322,0.03942,2421.9,2421.8,16.54534797]
[1726390170530,0.03942,2421.9,2421.8,18.1255382]
[1726390171816,0.03942,2421.9,2421.8,18.12554326]
[1726390173949,0.03942,2421.9,2421.8,16.54535303]
[1726390174099,0.03942,2421.9,2421.8,18.12552625]
[1726390174506,0.03942,2421.9,2421.8,19.3410433]
[1726390175389,0.03942,2421.9,2421.8,17.17000694]
[1726390175595,0.03942,2421.9,2421.8,19.34099864]
[1726390177409,0.03942,2421.9,2421.8,16.54530837]
[1726390177613,0.03942,2421.9,2421.8,18.73325042]
[1726390177947,0.03942,2421.9,2421.8,19.3410121]
[1726390179237,0.03942,2421.9,2421.8,17.0857121]
[1726390179437,0.03942,2421.9,2421.8,16.65158641]
[1726390179636,0.03942,2421.9,2421.8,16.65158938]
[1726390179836,0.03942,2421.9,2421.8,16.65158817]
[1726390179994,0.03942,2421.9,2421.8,17.0857121]
[1726390181335,0.03942,2421.9,2421.8,14.9147204]
[1726390181514,0.03942,2421.9,2421.8,17.0857121]
[1726390182941,0.03942,2421.9,2421.8,14.9147204]
[1726390183304,0.03942,2421.9,2421.8,17.0857121]
[1726390184907,0.03942,2421.9,2421.8,17.08580603]
[1726390185930,0.03942,2421.9,2421.8,16.53580603]
[1726390186146,0.03942,2421.9,2421.8,8.30853049]
[1726390186147,2.45252,2421.9,2421.8,8.30853049]
[1726390186330,2.45252,2421.9,2421.8,7.3361118]
[1726390186513,2.697772,2421.9,2421.8,6.46754462]
[1726390187859,2.697772,2421.9,2421.8,6.46768669]
[1726390188155,2.697772,2421.9,2421.8,2.33852669]
[1726390189914,2.697772,2421.9,2421.8,0.31069667]
[1726390190133,2.697772,2421.9,2421.6,1.41992627]
[1726390190327,2.4131,2421.7,2421.6,1.41992627]
[1726390190559,2.4131,2421.7,2421.6,2.02785731]
[1726390191114,2.4131,2421.7,2421.6,2.02786341]
[1726390191565,2.4131,2421.7,2421.6,1.41992627]
[1726390195042,2.4131,2421.7,2421.6,5.54942627]
[1726390195256,2.68532972,2421.7,2421.6,5.54942627]
[1726390195851,2.68532972,2421.7,2421.6,5.86012585]
[1726390198255,2.4131,2421.7,2421.6,5.86012585]
[1726390204396,2.39122,2421.9,2421.7,4.12929]
[1726390204619,2.39122,2421.9,2421.8,1.41992627]
[1726390204950,2.39122,2421.9,2421.8,5.84942766]
[1726390216877,2.39122,2421.9,2421.8,1.72026766]
[1726390220994,0.03942,2421.9,2421.8,1.72026766]
[1726390222029,0.03942,2421.9,2421.8,2.45552326]
[1726390222423,0.03942,2421.9,2421.8,3.19077834]
[1726390223827,0.03942,2421.9,2421.8,7.31993834]
[1726390224027,0.03942,2421.9,2421.8,6.58468274]
[1726390225632,0.03942,2421.9,2421.8,5.84942766]
[1726390225930,0.03942,2421.9,2421.8,6.58464937]
[1726390226080,0.03942,2421.9,2421.8,8.05509274]
[1726390229625,0.03942,2421.9,2421.8,8.05509747]
[1726390233219,0.03942,2421.9,2421.8,7.31987109]
[1726390234125,0.03942,2421.9,2421.8,6.58465563]
[1726390235855,0.03942,2421.9,2421.8,7.04417302]
[1726390240563,0.03942,2421.9,2421.8,6.58465563]
[1726390240726,0.03942,2421.9,2421.8,7.04417866]
[1726390240932,0.03942,2421.9,2421.8,6.30895069]
[1726390244171,0.03942,2421.9,2421.8,5.84942766]
[1726390248129,0.03942,2421.9,2421.8,6.71799484]
[1726390262665,0.03942,2421.9,2421.8,7.32593876]
[1726390264974,0.03942,2421.9,2421.8,6.71799484]
[1726390265467,0.03942,2421.9,2421.8,7.32594052]
[1726390265664,0.03942,2421.9,2421.8,3.19678052]
[1726390265889,2.595452,2421.9,2421.8,0.30034139]
[1726390266184,2.35942,2421.9,2421.8,0.30034139]
[1726390266408,2.2887,2421.8,2421.5,4.99811718]
[1726390266540,2.8237782,2421.8,2421.6,1.41992627]
[1726390267376,2.2887,2421.8,2421.6,1.41992627]
[1726390270859,2.2887,2421.8,2421.7,0.30052636]
[1726390273263,0.03942,2421.9,2421.7,0.30052636]
[1726390273486,0.03942,2421.9,2421.8,1.41992627]
[1726390274076,0.03942,2421.9,2421.8,1.72034251]
[1726390293891,0.03942,2421.9,2421.8,2.32829636]
[1726390294932,0.03942,2421.9,2421.8,2.32829752]
[1726390299694,0.03942,2421.9,2421.8,1.72034251]
[1726390299942,0.03942,2421.9,2421.8,2.32827973]
[1726390300146,0.03942,2421.9,2421.8,2.32827974]
[1726390300855,0.03942,2421.9,2421.8,3.06350145]
[1726390304420,0.03942,2421.9,2421.8,3.52302245]
[1726390304814,2.37072,2421.9,2421.8,3.52302245]
[1726390305157,2.37072,2421.9,2421.8,2.91508522]
[1726390307217,2.37072,2421.9,2421.8,1.49515895]
[1726390307218,2.607792,2421.9,2421.8,1.49515895]
[1726390307516,2.607792,2421.9,2421.8,0.75993724]
[1726390308044,2.607792,2421.9,2421.8,0.30041624]
[1726390308207,2.607792,2421.9,2421.8,0.75537114]
[1726390308409,2.607792,2421.9,2421.8,0.30041624]
[1726390308749,4.12917,2421.8,2421.4,1.41992627]
[1726390309053,2.4436,2421.7,2421.5,1.18290677]
[1726390309365,2.4436,2421.7,2421.6,1.18290677]
[1726390310251,2.4436,2421.7,2421.4,1.41992627]
[1726390310252,3.19589322,2421.7,2421.4,1.41992627]
[1726390310446,3.19589322,2421.7,2421.6,0.45496124]
[1726390311066,7.32522322,2421.7,2421.6,0.45496124]
[1726390311260,7.32522322,2421.7,2421.4,1.41992627]
[1726390311261,6.57313,2421.6,2421.4,1.41992627]
[1726390311467,7.78593634,2421.6,2421.5,0.45498271]
[1726390312198,7.78593634,2421.6,2421.3,1.21592894]
[1726390312199,5.34233634,2421.6,2421.3,1.21592894]
[1726390312346,6.57344,2421.4,2421.3,1.21592894]
[1726390314398,10.70328,2421.4,2421.3,1.21592894]
[1726390314561,2.4436,2421.2,2420.9,1.41992627]
[1726390314755,2.4436,2421.2,2421.0,0.45503399]
[1726390315084,0.657375,2421.1,2421.0,0.30068478]
[1726390315292,0.657375,2421.1,2421.0,0.75572296]
[1726390315451,6.5738,2421.2,2421.0,0.45503818]
[1726390315656,6.5738,2421.2,2421.1,0.3005746]
[1726390316166,6.5738,2421.2,2420.9,1.41992627]
[1726390316370,6.5738,2421.2,2421.1,0.3005746]
[1726390316577,6.5738,2421.2,2421.0,0.30068478]
[1726390316908,6.5738,2421.2,2421.1,0.3007533]
[1726390317189,7.644164,2421.2,2421.1,0.3007533]
[1726390317394,7.644164,2421.2,2420.9,1.41992627]
[1726390317395,2.4436,2421.0,2420.9,1.41992627]
[1726390317598,2.4436,2421.0,2420.9,1.8749787]
[1726390318098,6.57412,2421.0,2420.7,1.41992627]
[1726390318301,7.3385544,2421.0,2420.7,1.41992627]
[1726390321778,3.2080344,2421.0,2420.9,1.41992627]
[1726390323814,3.2080344,2421.0,2420.5,2.3449]
[1726390323995,3.2080344,2421.0,2420.7,1.41992627]
[1726390323996,0.73384144,2420.9,2420.7,1.41992627]
[1726390324205,2.4436,2421.0,2420.7,1.41992627]
[1726390324386,2.4436,2421.0,2420.9,1.41992627]
[1726390330982,2.4436,2421.0,2420.9,1.71123788]
[1726390331345,2.4436,2421.0,2420.9,0.29131161]
[1726390331653,3.100998,2421.0,2420.8,1.41992627]
[1726390331972,2.4436,2421.0,2420.9,0.29137101]
[1726390337873,6.43929,2421.3,2420.9,0.29137101]
[1726390338267,6.43929,2421.3,2421.0,1.41992627]
[1726390338447,5.3092,2421.5,2421.2,1.41992627]
[1726390338646,2.3092,2421.5,2421.4,1.41992627]
[1726390338846,3.982061,2421.5,2421.4,0.29082252]
[1726390339088,3.982061,2421.5,2421.2,1.41992627]
[1726390339595,2.3092,2421.7,2421.4,1.41992627]
[1726390339946,2.3092,2421.7,2421.5,0.29071238]
[1726390340147,0.643837,2421.6,2421.5,0.29071238]
[1726390345419,10.69577,2421.9,2421.5,0.29071238]
[1726390345626,6.56665,2421.9,2421.6,1.41992627]
[1726390345800,0.656665,2421.8,2421.6,1.41992627]
[1726390346111,2.43762,2421.9,2421.7,0.29038526]
[1726390346322,0.03942,2421.9,2421.8,1.41992627]
[1726390346703,0.03942,2421.9,2421.8,1.71008268]
[1726390352196,0.03942,2421.9,2421.8,4.11188268]
[1726390361837,0.03942,2421.9,2421.8,1.71008268]
[1726390383028,4.834811,2421.9,2421.8,0.29015641]
[1726390383267,0.03942,2421.9,2421.8,0.29015641]
[1726390383468,0.03942,2421.9,2421.6,1.41992627]
[1726390383652,0.03942,2421.9,2421.8,0.28998784]
[1726390383826,0.03942,2421.9,2421.7,0.29009796]
[1726390384027,0.03942,2421.9,2421.6,1.41992627]
[1726390384257,0.03942,2421.9,2421.8,0.28998784]
[1726390384571,0.705855,2421.9,2421.8,0.28998784]
[1726390384864,0.705855,2421.9,2421.6,1.41992627]
[1726390385062,0.705855,2421.9,2421.8,0.28998784]
[1726390385063,4.834835,2421.9,2421.8,0.28998784]
[1726390385524,4.834835,2421.9,2421.6,1.41992627]
[1726390385670,1.1459765,2421.8,2421.7,0.74505433]
[1726390386502,4.834835,2421.9,2421.7,0.74505433]
[1726390386693,4.834835,2421.9,2421.7,0.29009796]
[1726390387504,4.834835,2421.9,2421.8,0.45495324]
[1726390387717,4.834835,2421.9,2421.8,0.45495376]
[1726390387931,4.834835,2421.9,2421.8,0.29002344]
[1726390388075,4.834835,2421.9,2421.8,0.74497715]
[1726390388270,4.834835,2421.9,2421.8,0.45495371]
[1726390388571,4.834835,2421.9,2421.8,0.74497715]
[1726390388921,4.834835,2421.9,2421.8,0.29002344]
[1726390389212,4.834835,2421.9,2421.6,1.41992627]
[1726390389410,4.834835,2421.9,2421.8,0.45495516]
[1726390389581,4.834835,2421.9,2421.7,0.74508872]
[1726390389786,4.834835,2421.9,2421.8,0.7449786]
[1726390392997,4.834835,2421.9,2421.8,0.29002344]
[1726390393202,4.834835,2421.9,2421.8,0.74497384]
[1726390393402,4.834835,2421.9,2421.8,0.4549504]
[1726390393599,4.1684,2421.9,2421.8,1.70994971]
[1726390394063,0.03942,2421.9,2421.8,2.16490156]
[1726390396328,0.03942,2421.9,2421.8,2.16489053]
[1726390398332,4.1684,2421.9,2421.8,2.16489053]
[1726390398522,1.24829566,2421.9,2421.8,2.16489053]
[1726390399844,1.24829566,2421.9,2421.8,2.16490133]
[1726390402049,5.37727566,2421.9,2421.8,2.16490133]
[1726390402683,5.37727566,2421.9,2421.8,0.74497506]
[1726390403692,5.37727566,2421.9,2421.8,0.29002344]
[1726390403982,5.37727566,2421.9,2421.8,0.4549521]
[1726390404195,9.50625566,2421.9,2421.8,0.74497081]
[1726390404402,16.26178223,2421.9,2421.8,0.74497081]
[1726390404697,4.13018,2421.2,2421.1,0.86856718]
[1726390404909,4.12991,2421.4,2421.1,1.8749357]
[1726390405064,1.29650115,2421.7,2421.1,0.28133104]
[1726390405065,4.13018,2421.2,2421.1,0.28133104]
[1726390405258,4.13018,2421.2,2421.1,0.73636299]
[1726390405492,4.13018,2421.2,2421.1,0.45503195]
[1726390405663,4.13018,2421.2,2421.1,0.73636536]
[1726390406394,5.202211,2421.2,2421.1,0.28133341]
[1726390406564,5.202211,2421.2,2421.1,0.73636669]
[1726390406888,5.202211,2421.2,2421.1,0.45503328]
[1726390407084,5.202211,2421.2,2421.1,0.73636669]
[1726390409966,5.202211,2421.2,2421.1,0.28133341]
[1726390410167,4.13038,2421.1,2420.9,1.41992627]
[1726390410790,4.13038,2421.1,2421.0,0.4550427]
[1726390411886,4.13038,2421.1,2420.9,1.41992627]
[1726390412082,4.13038,2421.1,2421.0,0.45504164]
[1726390413532,4.13038,2421.1,2421.0,0.45504002]
[1726390414191,4.13038,2421.1,2420.9,1.41992627]
[1726390414405,4.13038,2421.1,2421.0,0.45504244]
[1726390414585,4.13038,2421.1,2421.0,0.91008439]
[1726390415300,4.13038,2421.1,2421.0,0.45504195]
[1726390417098,4.13038,2421.1,2420.9,1.41992627]
[1726390420748,4.13038,2421.1,2421.0,0.28160029]
[1726390423053,4.13003,2421.3,2421.0,0.28160029]
[1726390423357,8.2602,2421.3,2421.2,1.41992627]
[1726390423513,8.2602,2421.3,2421.2,1.70145579]
[1726390428244,4.13003,2421.3,2421.2,1.70145579]
[1726390439471,4.12985,2421.4,2421.2,1.70145579]
[1726390439671,8.25982,2421.4,2421.2,1.70145579]
[1726390441383,4.12985,2421.4,2421.2,1.70145579]
[1726390445185,4.12985,2421.4,2421.3,0.45502226]
[1726390445575,4.12985,2421.4,2421.3,0.73642975]
[1726390450888,4.12985,2421.4,2421.3,0.28140749]
[1726390451198,4.12985,2421.4,2421.3,0.45502696]
[1726390451400,4.12985,2421.4,2421.3,0.73643445]
[1726390453602,4.12985,2421.4,2421.3,0.27658715]
[1726390453906,5.49128766,2421.4,2421.0,2.28849345]
[1726390454111,4.12985,2421.4,2421.3,0.27658238]
[1726390454396,4.12985,2421.4,2421.0,2.28849345]
[1726390454762,4.12985,2421.4,2421.1,0.27680272]
[1726390456091,4.12985,2421.4,2421.1,1.1453699]
[1726390456305,4.12985,2421.4,2421.1,0.27680272]
[1726390459188,8.25982,2421.4,2421.1,0.27680272]
[1726390459384,5.49132566,2421.4,2421.1,0.27680272]
[1726390461710,9.62127566,2421.4,2421.1,0.27680272]
[1726390462978,2.4416,2421.3,2421.1,0.27680272]
[1726390465098,2.4416,2421.3,2421.2,1.41992627]
[1726390465281,2.4416,2421.3,2421.1,0.27680272]
[1726390465480,2.4416,2421.3,2421.2,0.72765599]
[1726390467987,2.4416,2421.3,2421.2,0.27669255]
[1726390468317,2.4416,2421.3,2421.2,0.45096638]
[1726390468616,6.57161,2421.3,2421.2,0.72765893]
[1726390471405,6.57161,2421.3,2421.2,0.27669255]
[1726390471583,6.57161,2421.3,2421.2,0.72765998]
[1726390474636,6.57161,2421.3,2421.2,0.27669255]
[1726390474932,6.57161,2421.3,2421.2,0.72765999]
[1726390475088,6.57161,2421.3,2421.2,0.45096744]
[1726390475294,6.57161,2421.3,2421.2,0.72702447]
[1726390478197,6.57161,2421.3,2421.2,0.27605871]
[1726390478505,6.57161,2421.3,2421.0,2.28849345]
[1726390478735,6.57161,2421.3,2421.2,0.27605871]
[1726390479034,6.57161,2421.3,2421.2,0.72702657]
[1726390490580,4.13001,2421.3,2421.2,0.72702657]
[1726390491389,4.13001,2421.3,2421.2,0.72702266]
[1726390495173,4.13001,2421.3,2421.2,0.27605871]
[1726390495390,4.13001,2421.3,2421.2,0.450968]
[1726390495587,4.13001,2421.3,2421.2,1.17799387]
[1726390495950,4.13001,2421.3,2421.2,0.72702587]
[1726390500647,4.12985,2421.4,2421.2,0.72702587]
[1726390500823,4.12985,2421.4,2421.3,0.45096716]
[1726390501013,4.12985,2421.4,2421.3,0.72691571]
[1726390501214,4.12985,2421.4,2421.3,0.72690941]
[1726390504016,4.12985,2421.4,2421.3,0.27594855]
[1726390504256,4.12985,2421.4,2421.1,0.86856718]
[1726390504424,4.12985,2421.4,2421.3,0.27594855]
[1726390504758,5.48354566,2421.4,2421.3,0.45095498]
[1726390504916,5.48354566,2421.4,2421.3,0.72690353]
[1726390505245,5.48354566,2421.4,2421.3,1.17786155]
[1726390505867,5.48354566,2421.4,2421.3,0.72690657]
[1726390507560,5.48354566,2421.4,2421.3,0.27594855]
[1726390507760,5.48354566,2421.4,2421.3,0.7269115]
[1726390507941,5.48354566,2421.4,2421.3,0.45096295]
[1726390508141,5.48354566,2421.4,2421.3,0.7269115]
[1726390508672,6.78004681,2421.4,2421.3,0.7269115]
[1726390508827,9.04964681,2421.4,2421.3,0.7269115]
[1726390511267,7.75314566,2421.4,2421.3,0.7269115]
[1726390512377,9.04964681,2421.4,2421.3,0.7269115]
[1726390512666,7.75314566,2421.4,2421.3,0.7269115]
[1726390513864,7.75314566,2421.4,2421.3,0.27594855]
[1726390514172,7.75314566,2421.4,2421.0,2.28849345]
[1726390514372,7.75314566,2421.4,2421.3,0.72691772]
[1726390514373,9.04964681,2421.4,2421.3,0.72691772]
[1726390514677,7.75314566,2421.4,2421.3,0.27595094]
[1726390514978,7.75314566,2421.4,2421.3,0.45096678]
[1726390515140,9.04964681,2421.4,2421.3,0.72691772]
[1726390518246,9.04964681,2421.4,2421.3,0.27595094]
[1726390518444,9.04964681,2421.4,2421.0,2.28849345]
[1726390518764,9.04964681,2421.4,2421.3,0.27595094]
[1726390518977,9.04964681,2421.4,2421.3,0.45096955]
[1726390519141,9.04964681,2421.4,2421.3,0.72692049]
[1726390521695,9.04964681,2421.4,2421.3,0.72692154]
[1726390524524,9.04964681,2421.4,2421.3,0.27595094]
[1726390524677,9.04964681,2421.4,2421.0,2.28849345]
[1726390524879,9.04964681,2421.4,2421.3,0.45096971]
[1726390525100,9.04964681,2421.4,2421.1,0.60817098]
[1726390525101,9.04964681,2421.4,2421.1,0.88434939]
[1726390525299,9.04964681,2421.4,2421.3,0.27595807]
[1726390525510,9.04964681,2421.4,2421.1,1.05914447]
[1726390525690,9.04964681,2421.4,2421.3,0.27595807]
[1726390526021,9.04964681,2421.4,2421.0,2.28849345]
[1726390526195,9.04964681,2421.4,2421.3,0.27595807]
[1726390526923,9.04964681,2421.4,2421.0,2.28849345]
[1726390527107,9.04964681,2421.4,2421.3,0.27595807]
[1726390527108,7.69595115,2421.4,2421.3,0.27595807]
[1726390527305,7.69595115,2421.4,2421.0,2.28849345]
[1726390527620,7.69595115,2421.4,2421.3,0.27595807]
[1726390528121,4.1301,2421.3,2421.0,0.86856718]
[1726390528341,8.26021,2421.3,2421.1,0.60817559]
[1726390528541,8.26021,2421.3,2420.9,2.3033]
[1726390528542,4.1301,2421.3,2420.9,3.17186718]
[1726390528756,2.3755,2421.0,2420.8,0.86856718]
[1726390528910,4.36824,2420.9,2420.7,0.86856718]
[1726390529232,4.36824,2420.9,2420.6,0.86856718]
[1726390529406,4.36824,2420.9,2420.5,3.23446718]
[1726390529608,4.36824,2420.9,2420.6,0.60823599]
[1726390529814,4.36824,2420.9,2420.5,3.23446718]
[1726390530406,0.23755,2420.9,2420.5,3.23446718]
[1726390530743,0.23755,2420.9,2420.5,2.3659]
[1726390530940,0.23755,2420.9,2420.5,3.23446718]
[1726390531148,0.23755,2420.9,2420.5,2.3659]
[1726390531985,4.36827,2420.9,2420.5,2.3659]
[1726390532742,4.36827,2420.9,2420.6,1.41992627]
[1726390532944,4.13072,2420.9,2420.6,1.41992627]
[1726390536087,6.50614,2421.0,2420.6,1.41992627]
[1726390536397,4.13064,2421.0,2420.8,1.41992627]
[1726390540507,4.13064,2421.0,2420.6,1.41992627]
[1726390540732,5.193851,2421.0,2420.6,1.41992627]
[1726390540913,5.193851,2421.0,2420.7,0.31898266]
[1726390544212,4.13064,2421.0,2420.7,0.31898266]
[1726390554617,2.3712,2421.1,2420.7,0.31898266]
[1726390554816,2.3712,2421.1,2420.8,1.41992627]
[1726390555355,2.3712,2421.1,2420.9,0.31875635]
[1726390555763,4.13027,2421.2,2421.0,1.41992627]
[1726390556049,4.13027,2421.2,2421.0,1.73857068]
[1726390556267,3.0,2421.3,2421.0,1.73857068]
[1726390561377,7.13004,2421.3,2421.0,1.73857068]
[1726390579205,8.42654115,2421.3,2421.0,1.73857068]
[1726390579405,7.13004,2421.3,2421.0,1.73857068]
[1726390580622,8.42654115,2421.3,2421.0,1.73857068]
[1726390580806,8.93195532,2421.3,2421.0,1.73857068]
[1726390581147,10.22845647,2421.3,2421.0,1.73857068]
[1726390581348,4.1302,2421.2,2421.0,0.31864441]
[1726390581505,4.13035,2421.1,2421.0,0.31864441]
[1726390581705,5.56624665,2421.1,2420.8,1.41992627]
[1726390581917,5.56624665,2421.1,2420.9,1.04024506]
[1726390582119,5.56624665,2421.1,2420.9,0.3186281]
[1726390584570,6.61332,2421.0,2420.9,0.3186281]
[1726390584860,6.61332,2421.0,2420.6,2.28849345]
[1726390584861,7.83126167,2421.0,2420.6,1.41992627]
[1726390585061,7.83126167,2421.0,2420.9,0.3186281]
[1726390585262,6.61332,2421.0,2420.6,1.41992627]
[1726390585430,6.61332,2421.0,2420.9,0.3186281]
[1726390585625,6.61332,2421.0,2420.9,0.45101973]
[1726390585829,6.61332,2421.0,2420.9,0.76964783]
[1726390586070,7.96091178,2421.0,2420.9,0.76964783]
[1726390586234,5.47811178,2421.0,2420.9,0.76964783]
[1726390586432,4.13052,2421.0,2420.9,0.76964783]
[1726390588225,4.13052,2421.0,2420.9,0.3186281]
[1726390588504,4.13052,2421.0,2420.9,0.76964217]
[1726390590959,4.13052,2421.0,2420.9,1.49124371]
[1726390595371,4.13052,2421.0,2420.9,0.3186281]
[1726390595539,4.13052,2421.0,2420.9,1.49123821]
[1726390596948,4.13052,2421.0,2420.9,1.49125007]
[1726390597151,12.00573115,2421.2,2420.9,1.49125007]
[1726390597362,9.35195739,2421.2,2421.0,0.45100389]
[1726390597677,8.42658115,2421.3,2421.1,0.76941048]
[1726390597980,7.13008,2421.3,2421.2,0.45100389]
[1726390598276,5.42643115,2421.4,2421.2,2.18922958]
[1726390598482,4.12993,2421.4,2421.3,0.45100389]
[1726390598631,5.89361444,2421.4,2421.3,0.45100389]
[1726390598839,5.89361444,2421.4,2421.3,0.7691549]
[1726390599352,4.12993,2421.4,2421.3,0.76915104]
[1726390602093,4.12993,2421.4,2421.3,0.76830014]
[1726390602978,4.12993,2421.4,2421.3,0.3173366]
[1726390603294,4.12993,2421.4,2421.3,0.450972]
[1726390603599,4.12993,2421.4,2421.3,0.7690765]
[1726390603600,6.05939712,2421.4,2421.3,0.7690765]
[1726390604154,6.05939712,2421.4,2421.3,0.3181045]
[1726390604355,6.05939712,2421.4,2421.3,0.45097577]
[1726390604563,6.05939712,2421.4,2421.3,0.3181045]
[1726390604796,6.05939712,2421.4,2421.0,3.70842627]
[1726390604994,6.05939712,2421.4,2421.1,0.76930446]
[1726390605167,0.73558983,2421.3,2421.2,0.45097612]
[1726390605360,0.73558983,2421.3,2421.2,0.76919254]
[1726390606358,4.12993,2421.4,2421.2,0.76919205]
[1726390606780,4.12993,2421.4,2421.3,0.45097563]
[1726390607094,4.12993,2421.4,2421.3,0.3181045]
[1726390607509,4.12993,2421.4,2421.0,3.70842627]
[1726390607694,4.12993,2421.4,2421.3,0.3181045]
[1726390608010,5.50312066,2421.4,2421.3,0.3181045]
[1726390608210,5.50312066,2421.4,2421.0,3.70842627]
[1726390608411,4.12993,2421.4,2421.1,0.76930657]
[1726390608576,4.12993,2421.4,2421.2,0.45097823]
[1726390608779,4.12993,2421.4,2421.3,0.3181045]
[1726390609012,4.12993,2421.4,2421.3,0.45097317]
[1726390609212,5.50312066,2421.4,2421.3,0.3181045]
[1726390609399,5.50312066,2421.4,2421.0,3.70842627]
[1726390609595,4.12993,2421.4,2421.1,0.31832834]
[1726390609804,4.12993,2421.4,2421.1,0.76930534]
[1726390610200,4.12993,2421.4,2421.2,0.45097684]
[1726390610723,4.12993,2421.4,2421.3,0.3181045]
[1726390611093,4.12993,2421.4,2421.0,3.70842627]
[1726390611414,4.13006,2421.3,2421.1,0.45098227]
[1726390611618,4.13006,2421.3,2421.2,0.76919869]
[1726390611775,5.50312066,2421.4,2421.2,0.76919869]
[1726390611978,5.50312066,2421.4,2421.2,0.31821642]
[1726390612189,5.50312066,2421.4,2421.0,3.70842627]
[1726390612406,9.63311066,2421.4,2421.1,0.76930615]
[1726390612611,1.09296118,2421.3,2421.2,0.45097781]
[1726390612813,1.09296118,2421.3,2421.2,0.76919423]
[1726390613014,1.09296118,2421.3,2421.2,0.76919164]
[1726390613323,5.50312066,2421.4,2421.3,2.3046]
[1726390613482,4.12993,2421.4,2421.3,2.75557522]
[1726390613821,4.12993,2421.4,2421.3,3.07369162]
[1726390615882,4.12993,2421.4,2421.3,0.76909162]
[1726390616083,5.08553211,2421.4,2421.3,0.76909162]
[1726390616484,5.08553211,2421.4,2421.3,0.45097522]
[1726390616795,5.08553211,2421.4,2421.3,0.45096868]
[1726390617519,5.08553211,2421.4,2421.3,0.76908508]
[1726390618783,5.08553211,2421.4,2421.3,0.3181164]
[1726390618985,5.08553211,2421.4,2421.1,2.3046]
[1726390619340,4.12993,2421.4,2421.3,0.3181164]
[1726390619481,4.12993,2421.4,2421.2,0.31822832]
[1726390622004,4.12993,2421.4,2421.3,0.45097302]
[1726390622208,4.12993,2421.4,2421.3,0.76908227]
[1726390622419,4.12993,2421.4,2421.3,0.76908505]
[1726390622813,5.08554012,2421.4,2421.3,0.3181164]
[1726390623013,5.08554012,2421.4,2421.3,0.45096975]
[1726390623222,5.08554012,2421.4,2421.3,0.3181164]
[1726390623421,5.08554012,2421.4,2421.1,2.3046]
[1726390623728,4.12993,2421.4,2421.2,0.76919842]
[1726390623933,4.12993,2421.4,2421.2,0.31822832]
[1726390625632,6.38283,2421.4,2421.2,0.31822832]
[1726390625802,6.38283,2421.4,2421.0,1.41992627]
[1726390626003,6.38283,2421.4,2421.3,0.3181164]
[1726390626203,6.91872068,2421.4,2421.0,1.41992627]
[1726390626403,6.91872068,2421.4,2421.3,0.318114]
[1726390626613,6.91872068,2421.4,2421.0,1.41992627]
[1726390626829,6.91872068,2421.4,2421.3,0.318114]
[1726390627129,6.91872068,2421.4,2421.0,1.41992627]
[1726390627730,6.91872068,2421.4,2421.1,0.31833784]
[1726390628951,4.13001,2421.3,2421.1,0.31833784]
[1726390631128,5.36450718,2421.3,2421.1,0.31833784]
[1726390631630,5.36450718,2421.3,2421.2,0.31822592]
[1726390631830,4.13001,2421.3,2420.9,2.3975]
[1726390632035,4.13001,2421.3,2421.2,0.31822592]
[1726390632334,4.13001,2421.3,2420.9,2.3975]
[1726390632836,4.13001,2421.3,2421.0,0.31841415]
[1726390638331,8.26013,2421.3,2421.0,0.31841415]
[1726390638536,4.13001,2421.3,2421.0,0.31841415]
[1726390639040,8.26013,2421.3,2421.0,0.31841415]
[1726390639739,4.1302,2421.2,2421.0,0.31841415]
[1726390640297,6.4643,2421.2,2421.0,0.31841415]
[1726390640527,6.4643,2421.2,2420.8,2.28849345]
[1726390640711,6.4643,2421.2,2420.9,0.92673629]
[1726390640903,6.4643,2421.2,2420.9,0.31854034]
[1726390643313,6.4643,2421.2,2421.0,0.60818936]
[1726390643657,6.4643,2421.2,2421.1,0.31832834]
[1726390644033,6.4643,2421.2,2420.8,2.28849345]